Workbook

Sheet Статистика
B2: Статистика

Sheet Ввод параметров
B2: Ввод параметров
B4: Магазин разливных напитков "Разливнович" | J4: Чтобы просмотреть видео, кликните по картинке
J6: Финансовая модель магазина разливных напитков "Разливнович" Для подсчета прибыли введите в салатовые ячейки следующие параметры: 1. Введите площадь помещения 2. Введите ставку квадратного метра помещения 3. Введите ставку 1 рабочей смены продавца 4. Введите процент продавца (От ежедневной выручки) 5. Введите процент рояли согласно выбранному пакету 6. Введите количество планируемых кранов 7. Введите количество наименований закусок 8. Введите количество посетителей в день Программа моментально будет изменять отображаемые прогнозы по среднему расходам/доходам/чистой прибыли
B7: Старт проекта | C7: 2019-01-01
B8: Коэффицинт трезвости региона | C8: 32 | D8: ед | F8: Раскачка продаж
B9: Кол-во квартир в радиусе 500 м | C9: 2000 | D9: Шт | F9: 1-й месяц | G9: 0.2
B10: Помещение | C10: 28 | D10: м2 | F10: 2-й месяц | G10: 0.3
B11: Аренда | C11: 700 | D11: рублей/м2 | F11: 3-й месяц | G11: 0.4
B12: Заработная плата (Фикс) | C12: 800 | D12: рублей | F12: 4-й месяц | G12: 0.5
B13: Заработная плата (%) | C13: 3 | D13: % | F13: 5-й месяц | G13: 0.6
B14: Количество кранов | C14: 25 | D14: шт | F14: 6-й месяц | G14: 0.7
B15: Наименований закусок | C15: 60 | D15: шт | F15: 7-й месяц | G15: 0.8
B16: Роялти | C16: 3 | D16: % | F16: 8-й месяц | G16: 0.9
B17: Налоговая ставка (УСН) | C17: 6 | D17: % | F17: 9-й месяц | G17: 1
B18: Минимальная стоимость литра | C18: 75 | D18: рублей | F18: 10-й месяц | G18: 1
B19: Максимальная стоимость литра | C19: 135 | D19: рублей | F19: 11-й месяц | G19: 1
B20: Доля рынка | C20: 6 | D20: % | F20: 12-й месяц | G20: 1
B22: Чтобы отобразить, нажмите ниже | J22: Чтобы отобразить, нажмите ниже
B23: Терминология | J23: ОПИСАНИЕ МОДЕЛИ МАГАЗИНА
B24: 1. Средний чек - сколько в среднем человек отдает денег за разовую покупку 2. Выручка - сумма всех денег поступивших с покупок 3. Рентабельность - показатель экономической эффективности 4. Роялти - обязательный платеж в УК (Взимается с выручки) 5. Товарный остаток - сумма, оплачиваемая поставщикам за продукты/товары 6. ФОТ - фонд оплаты труда (Заработная плата) 7. Аренда - ежемесячный платеж за помещение 8. Налоги - обязательные отчисления государству 9. Чистая прибыль - сумма денег, остающаяся на руках в свободное пользование у владельца бизнеса | J24: Финансовая модель магазина разливных напитков "Разливнович" Для подсчета прибыли введите в салатовые ячейки следующие параметры: 1. Введите площадь помещения 2. Введите ставку квадратного метра помещения 3. Введите ставку 1 рабочей смены продавца 4. Введите процент продавца (От ежедневной выручки) 5. Введите процент рояли согласно выбранному пакету 6. Введите количество планируемых кранов 7. Введите количество наименований закусок 8. Введите количество посетителей в день Программа моментально будет изменять отображаемые прогнозы по среднему расходам/доходам/чистой прибыли
B63: Терминология 1. Средний чек - сколько в среднем человек отдает денег за разовую покупку 2. Выручка - сумма всех денег поступивших с покупок 3. Рентабельность - показатель экономической эффективности 4. Роялти - обязательный платеж в УК (Взимается с выручки) 5. Товарный остаток - сумма, оплачиваемая поставщикам за продукты/товары 6. ФОТ - фонд оплаты труда (Заработная плата) 7. Аренда - ежемесячный платеж за помещение 8. Налоги - обязательные отчисления государству 9. Чистая прибыль - сумма денег, остающаяся на руках в свободное пользование у владельца бизнеса

Sheet Основная Информация
B2: Отчёт по основным финансовым показателям
B4: Окупаемость проекта | C4: ='Подробный Финансовый расчёт'!C34&" месяцев" -> 9 месяцев
B6: Период\Показатель | C6: Выручка | D6: Закупка | E6: Зарплата | F6: Аренда | G6: Чистая выручка | H6: Денежный поток накопительно
B7: 1-й месяц | C7: =TRANSPOSE('Подробный Финансовый расчёт'!$E$11:$P$11) -> 95463.52941 | D7: =TRANSPOSE('Подробный Финансовый расчёт'!$E$18:$P$18) -> -57278.11765 | E7: =TRANSPOSE('Подробный Финансовый расчёт'!$E$19:$P$19) -> -38319.52941 | F7: =TRANSPOSE('Подробный Финансовый расчёт'!$E$20:$P$20) -> -19600 | G7: =TRANSPOSE('Подробный Финансовый расчёт'!$E$30:$P$30) -> -518250.0706 | H7: =TRANSPOSE('Подробный Финансовый расчёт'!$E$31:$P$31) -> -518250.0706
B8: 2-й месяц | C8: 143195.2941 | D8: -85917.17647 | E8: -38319.52941 | F8: -19600 | G8: -302.9270588 | H8: -518552.9976
B9: 3-й месяц | C9: 190927.0588 | D9: -114556.2353 | E9: -38319.52941 | F9: -19600 | G9: 12260.07341 | H9: -506292.9242
B10: 4-й месяц | C10: 238658.8235 | D10: -143195.2941 | E10: -38319.52941 | F10: -19600 | G10: 28861.18118 | H10: -477431.7431
B11: 5-й месяц | C11: 286390.5882 | D11: -171834.3529 | E11: -38319.52941 | F11: -19600 | G11: 45462.28894 | H11: -431969.4541
B12: 6-й месяц | C12: 334122.3529 | D12: -200473.4118 | E12: -38319.52941 | F12: -19600 | G12: 62063.39671 | H12: -369906.0574
B13: 7-й месяц | C13: 381854.1176 | D13: -229112.4706 | E13: -38319.52941 | F13: -19600 | G13: 78664.50447 | H13: -291241.5529
B14: 8-й месяц | C14: 429585.8824 | D14: -257751.5294 | E14: -38319.52941 | F14: -19600 | G14: 95265.61224 | H14: -195975.9407
B15: 9-й месяц | C15: 477317.6471 | D15: -286390.5882 | E15: -38319.52941 | F15: -19600 | G15: 111866.72 | H15: -84109.22071
B16: 10-й месяц | C16: 477317.6471 | D16: -286390.5882 | E16: -38319.52941 | F16: -19600 | G16: 111866.72 | H16: 27757.49929
B17: 11-й месяц | C17: 477317.6471 | D17: -286390.5882 | E17: -38319.52941 | F17: -19600 | G17: 111866.72 | H17: 139624.2193
B18: 12-й месяц | C18: 477317.6471 | D18: -286390.5882 | E18: -38319.52941 | F18: -19600 | G18: 111866.72 | H18: 251490.9393
B19: Итого 1-й год | C19: =SUM(C7:C18) -> 4009468.235 | D19: =SUM(D7:D18) -> -2405680.941 | E19: -459834.3529 | F19: -235200 | G19: 251490.9393 | H19: =$H$18 -> 251490.9393
B20: 13-й месяц | C20: =TRANSPOSE('Подробный Финансовый расчёт'!$Q$11:$AB$11) -> 477317.6471 | D20: =TRANSPOSE('Подробный Финансовый расчёт'!$Q$18:$AB$18) -> -286390.5882 | E20: =TRANSPOSE('Подробный Финансовый расчёт'!$Q$19:$AB$19) -> -38319.52941 | F20: =TRANSPOSE('Подробный Финансовый расчёт'!$Q$20:$AB$20) -> -19600 | G20: =TRANSPOSE('Подробный Финансовый расчёт'!$Q$30:$AB$30) -> 111866.72 | H20: =TRANSPOSE('Подробный Финансовый расчёт'!$Q$31:$AB$31) -> 363357.6593
B21: 14-й месяц | C21: 477317.6471 | D21: -286390.5882 | E21: -38319.52941 | F21: -19600 | G21: 111866.72 | H21: 475224.3793
B22: 15-й месяц | C22: 477317.6471 | D22: -286390.5882 | E22: -38319.52941 | F22: -19600 | G22: 111866.72 | H22: 587091.0993
B23: 16-й месяц | C23: 477317.6471 | D23: -286390.5882 | E23: -38319.52941 | F23: -19600 | G23: 111866.72 | H23: 698957.8193
B24: 17-й месяц | C24: 477317.6471 | D24: -286390.5882 | E24: -38319.52941 | F24: -19600 | G24: 111866.72 | H24: 810824.5393
B25: 18-й месяц | C25: 477317.6471 | D25: -286390.5882 | E25: -38319.52941 | F25: -19600 | G25: 111866.72 | H25: 922691.2593
B26: 19-й месяц | C26: 477317.6471 | D26: -286390.5882 | E26: -38319.52941 | F26: -19600 | G26: 111866.72 | H26: 1034557.979
B27: 20-й месяц | C27: 477317.6471 | D27: -286390.5882 | E27: -38319.52941 | F27: -19600 | G27: 111866.72 | H27: 1146424.699
B28: 21-й месяц | C28: 477317.6471 | D28: -286390.5882 | E28: -38319.52941 | F28: -19600 | G28: 111866.72 | H28: 1258291.419
B29: 22-й месяц | C29: 477317.6471 | D29: -286390.5882 | E29: -38319.52941 | F29: -19600 | G29: 111866.72 | H29: 1370158.139
B30: 23-й месяц | C30: 477317.6471 | D30: -286390.5882 | E30: -38319.52941 | F30: -19600 | G30: 111866.72 | H30: 1482024.859
B31: 24-й месяц | C31: 477317.6471 | D31: -286390.5882 | E31: -38319.52941 | F31: -19600 | G31: 111866.72 | H31: 1593891.579
B32: Итого 2-й год | C32: =SUM(C20:C31) -> 5727811.765 | D32: =SUM(D20:D31) -> -3436687.059 | E32: =SUM(E20:E31) -> -459834.3529 | F32: =SUM(F20:F31) -> -235200 | G32: =SUM(G20:G31) -> 1342400.64 | H32: =$H$31 -> 1593891.579
B33: Итого за 2 года | C33: =C32+C19 -> 9737280 | D33: =D32+D19 -> -5842368 | E33: -919668.7059 | F33: -470400 | G33: 1593891.579 | H33: =H32 -> 1593891.579
B37: Период | C37: Маржинальность
B38: 1-й месяц | C38: =$G$7:$G$18/$C$7:$C$18 -> -5.42877551
B39: 2-й месяц | C39: -0.002115481942
B40: 3-й месяц | C40: 0.06421338854
B41: 4-й месяц | C41: 0.1209307108
B42: 5-й месяц | C42: 0.158742259
B43: 6-й месяц | C43: 0.1857505077
B44: 7-й месяц | C44: 0.2060066943
B45: 8-й месяц | C45: 0.221761506
B46: 9-й месяц | C46: 0.2343653554
B47: 10-й месяц | C47: 0.2343653554
B48: 11-й месяц | C48: 0.2343653554
B49: 12-й месяц | C49: 0.2343653554
B51: =B37 -> Период | C51: =C6 -> Выручка
B52: 1-й месяц | C52: 95463.52941
B53: 2-й месяц | C53: 143195.2941
B54: 3-й месяц | C54: 190927.0588
B55: 4-й месяц | C55: 238658.8235
B56: 5-й месяц | C56: 286390.5882
B57: 6-й месяц | C57: 334122.3529
B58: 7-й месяц | C58: 381854.1176
B59: 8-й месяц | C59: 429585.8824
B60: 9-й месяц | C60: 477317.6471
B61: 10-й месяц | C61: 477317.6471
B62: 11-й месяц | C62: 477317.6471
B63: 12-й месяц | C63: 477317.6471
B65: =B51 -> Период | C65: =G6 -> Чистая выручка
B66: =B7 -> 1-й месяц | C66: =G7 -> -518250.0706
B67: 2-й месяц | C67: -302.9270588
B68: 3-й месяц | C68: 12260.07341
B69: 4-й месяц | C69: 28861.18118
B70: 5-й месяц | C70: 45462.28894
B71: 6-й месяц | C71: 62063.39671
B72: 7-й месяц | C72: 78664.50447
B73: 8-й месяц | C73: 95265.61224
B74: 9-й месяц | C74: 111866.72
B75: 10-й месяц | C75: 111866.72
B76: 11-й месяц | C76: 111866.72
B77: 12-й месяц | C77: 111866.72

Sheet Сравнение со средним
B2: Сравнение со среднестатестической точкой
B4: Окупаемость проекта | C4: ='Подробный Финансовый расчёт'!C34&" месяцев" -> 9 месяцев
B5: Средняя окупаемость | C5: 12 месяцев
B7: Проект | C7: Текущий | D7: Средний | E7: Текущий | F7: Средний | G7: Текущий | H7: Средний
B8: Период\Показатель | C8: Выручка | D8: Выручка | E8: Чистая выручка | F8: Чистая выручка | G8: Денежный поток накопительно | H8: Денежный поток накопительно
B9: 1-й месяц | C9: =TRANSPOSE('Подробный Финансовый расчёт'!$E$11:$P$11) -> 95463.52941 | D9: 35798.82353 | E9: =TRANSPOSE('Подробный Финансовый расчёт'!$E$30:$P$30) -> -518250.0706 | F9: -537318.9106 | G9: =TRANSPOSE('Подробный Финансовый расчёт'!$E$31:$P$31) -> -518250.0706 | H9: -537318.9106
B10: 2-й месяц | C10: 143195.2941 | D10: 71597.64706 | E10: -302.9270588 | F10: -23858.55294 | G10: -518552.9976 | H10: -561177.4635
B11: 3-й месяц | C11: 190927.0588 | D11: 107396.4706 | E11: 12260.07341 | F11: -13426.77576 | G11: -506292.9242 | H11: -574604.2393
B12: 4-й месяц | C12: 238658.8235 | D12: 143195.2941 | E12: 28861.18118 | F12: -975.9449412 | G12: -477431.7431 | H12: -575580.1842
B13: 5-й месяц | C13: 286390.5882 | D13: 178994.1176 | E13: 45462.28894 | F13: 11474.88588 | G13: -431969.4541 | H13: -564105.2984
B14: 6-й месяц | C14: 334122.3529 | D14: 214792.9412 | E14: 62063.39671 | F14: 23925.71671 | G14: -369906.0574 | H14: -540179.5816
B15: 7-й месяц | C15: 381854.1176 | D15: 286390.5882 | E15: 78664.50447 | F15: 48827.37835 | G15: -291241.5529 | H15: -491352.2033
B16: 8-й месяц | C16: 429585.8824 | D16: 322189.4118 | E16: 95265.61224 | F16: 61278.20918 | G16: -195975.9407 | H16: -430073.9941
B17: 9-й месяц | C17: 477317.6471 | D17: 357988.2353 | E17: 111866.72 | F17: 73729.04 | G17: -84109.22071 | H17: -356344.9541
B18: 10-й месяц | C18: 477317.6471 | D18: 357988.2353 | E18: 111866.72 | F18: 73729.04 | G18: 27757.49929 | H18: -282615.9141
B19: 11-й месяц | C19: 477317.6471 | D19: 357988.2353 | E19: 111866.72 | F19: 73729.04 | G19: 139624.2193 | H19: -208886.8741
B20: 12-й месяц | C20: 477317.6471 | D20: 357988.2353 | E20: 111866.72 | F20: 73729.04 | G20: 251490.9393 | H20: -135157.8341
B21: Итого 1-й год | C21: =SUM(C9:C20) -> 4009468.235 | D21: 2792308.235 | E21: =SUM(E9:E20) -> 251490.9393 | F21: -135157.8341 | G21: =$G$20 -> 251490.9393 | H21: -135157.8341
B22: 13-й месяц | C22: =TRANSPOSE('Подробный Финансовый расчёт'!$Q$11:$AB$11) -> 477317.6471 | D22: 357988.2353 | E22: =TRANSPOSE('Подробный Финансовый расчёт'!$Q$30:$AB$30) -> 111866.72 | F22: 73729.04 | G22: =TRANSPOSE('Подробный Финансовый расчёт'!$Q$31:$AB$31) -> 363357.6593 | H22: -61428.79412
B23: 14-й месяц | C23: 477317.6471 | D23: 357988.2353 | E23: 111866.72 | F23: 73729.04 | G23: 475224.3793 | H23: 12300.24588
B24: 15-й месяц | C24: 477317.6471 | D24: 357988.2353 | E24: 111866.72 | F24: 73729.04 | G24: 587091.0993 | H24: 86029.28588
B25: 16-й месяц | C25: 477317.6471 | D25: 357988.2353 | E25: 111866.72 | F25: 73729.04 | G25: 698957.8193 | H25: 159758.3259
B26: 17-й месяц | C26: 477317.6471 | D26: 357988.2353 | E26: 111866.72 | F26: 73729.04 | G26: 810824.5393 | H26: 233487.3659
B27: 18-й месяц | C27: 477317.6471 | D27: 357988.2353 | E27: 111866.72 | F27: 73729.04 | G27: 922691.2593 | H27: 307216.4059
B28: 19-й месяц | C28: 477317.6471 | D28: 357988.2353 | E28: 111866.72 | F28: 73729.04 | G28: 1034557.979 | H28: 380945.4459
B29: 20-й месяц | C29: 477317.6471 | D29: 357988.2353 | E29: 111866.72 | F29: 73729.04 | G29: 1146424.699 | H29: 454674.4859
B30: 21-й месяц | C30: 477317.6471 | D30: 357988.2353 | E30: 111866.72 | F30: 73729.04 | G30: 1258291.419 | H30: 528403.5259
B31: 22-й месяц | C31: 477317.6471 | D31: 357988.2353 | E31: 111866.72 | F31: 73729.04 | G31: 1370158.139 | H31: 602132.5659
B32: 23-й месяц | C32: 477317.6471 | D32: 357988.2353 | E32: 111866.72 | F32: 73729.04 | G32: 1482024.859 | H32: 675861.6059
B33: 24-й месяц | C33: 477317.6471 | D33: 357988.2353 | E33: 111866.72 | F33: 73729.04 | G33: 1593891.579 | H33: 749590.6459
B34: Итого 2-й год | C34: =SUM(C22:C33) -> 5727811.765 | D34: 4295858.824 | E34: =SUM(E22:E33) -> 1342400.64 | F34: 884748.48 | G34: =$H$33 -> 749590.6459 | H34: 749590.6459
B35: Итого за 2 года | C35: =C34+C21 -> 9737280 | D35: 7088167.059 | E35: =E34+E21 -> 1593891.579 | F35: 749590.6459 | G35: =G34 -> 749590.6459 | H35: 749590.6459
B38: Маржинальность | C38: Текущий проект | D38: Средний проект
B39: 2-й месяц | C39: =$E$10:$E$20/$C$10:$C$20 -> -0.002115481942 | D39: =$F$10:$F$20/$D$10:$D$20 -> -0.3332309639
B40: 3-й месяц | C40: 0.06421338854 | D40: -0.1250206426
B41: 4-й месяц | C41: 0.1209307108 | D41: -0.006815481942
B42: 5-й месяц | C42: 0.158742259 | D42: 0.06410761445
B43: 6-й месяц | C43: 0.1857505077 | D43: 0.1113896787
B44: 7-й месяц | C44: 0.2060066943 | D44: 0.170492259
B45: 8-й месяц | C45: 0.221761506 | D45: 0.1901931191
B46: 9-й месяц | C46: 0.2343653554 | D46: 0.2059538072
B47: 10-й месяц | C47: 0.2343653554 | D47: 0.2059538072
B48: 11-й месяц | C48: 0.2343653554 | D48: 0.2059538072
B49: 12-й месяц | C49: 0.2343653554 | D49: 0.2059538072
B52: Выручка | C52: =C7 -> Текущий | D52: Средний
B53: =B9 -> 1-й месяц | C53: 95463.52941 | D53: 35798.82353
B54: 2-й месяц | C54: 143195.2941 | D54: 71597.64706
B55: 3-й месяц | C55: 190927.0588 | D55: 107396.4706
B56: 4-й месяц | C56: 238658.8235 | D56: 143195.2941
B57: 5-й месяц | C57: 286390.5882 | D57: 178994.1176
B58: 6-й месяц | C58: 334122.3529 | D58: 214792.9412
B59: 7-й месяц | C59: 381854.1176 | D59: 286390.5882
B60: 8-й месяц | C60: 429585.8824 | D60: 322189.4118
B61: 9-й месяц | C61: 477317.6471 | D61: 357988.2353
B62: 10-й месяц | C62: 477317.6471 | D62: 357988.2353
B63: 11-й месяц | C63: 477317.6471 | D63: 357988.2353
B64: 12-й месяц | C64: 477317.6471 | D64: 357988.2353
B68: Чистая выручка | C68: Текущий | D68: Средний
B69: 2-й месяц | C69: =E10 -> -302.9270588 | D69: =F10 -> -23858.55294
B70: 3-й месяц | C70: 12260.07341 | D70: -13426.77576
B71: 4-й месяц | C71: 28861.18118 | D71: -975.9449412
B72: 5-й месяц | C72: 45462.28894 | D72: 11474.88588
B73: 6-й месяц | C73: 62063.39671 | D73: 23925.71671
B74: 7-й месяц | C74: 78664.50447 | D74: 48827.37835
B75: 8-й месяц | C75: 95265.61224 | D75: 61278.20918
B76: 9-й месяц | C76: 111866.72 | D76: 73729.04
B77: 10-й месяц | C77: 111866.72 | D77: 73729.04
B78: 11-й месяц | C78: 111866.72 | D78: 73729.04
B79: 12-й месяц | C79: 111866.72 | D79: 73729.04
B83: Денежный поток | C83: Текущий | D83: Средний
B84: 1-й месяц | C84: -536197.2141 | D84: -537318.9106
B85: 2-й месяц | C85: -554447.2847 | D85: -561177.4635
B86: 3-й месяц | C86: -558788.3191 | D86: -574604.2393
B87: 4-й месяц | C87: -546528.2456 | D87: -575580.1842
B88: 5-й месяц | C88: -517667.0645 | D88: -564105.2984
B89: 6-й месяц | C89: -472204.7755 | D89: -540179.5816
B90: 7-й месяц | C90: -393540.2711 | D90: -491352.2033
B91: 8-й месяц | C91: -298274.6588 | D91: -430073.9941
B92: 9-й месяц | C92: -186407.9388 | D92: -356344.9541
B93: 10-й месяц | C93: -74541.21882 | D93: -282615.9141
B94: 11-й месяц | C94: 37325.50118 | D94: -208886.8741
B95: 12-й месяц | C95: 149192.2212 | D95: -135157.8341

Sheet Подробный Финансовый расчёт
C1: =MAX(2:2) -> 36 | E1: =MONTH(E8) -> 1 | F1: =MONTH(F8) -> 2 | G1: 3 | H1: 4 | I1: 5 | J1: 6 | K1: 7 | L1: 8 | M1: 9 | N1: 10 | O1: 11 | P1: 12 | Q1: 1 | R1: 2 | S1: 3 | T1: 4 | U1: 5 | V1: 6 | W1: 7 | X1: 8 | Y1: 9 | Z1: 10 | AA1: 11 | AB1: 12 | AC1: 1 | AD1: 2 | AE1: 3 | AF1: 4 | AG1: 5 | AH1: 6 | AI1: 7 | AJ1: 8 | AK1: 9 | AL1: =MONTH(AL8) -> 10 | AM1: 11 | AN1: 12
E2: 1 | F2: =E2+1 -> 2 | G2: =F2+1 -> 3 | H2: 4 | I2: 5 | J2: 6 | K2: 7 | L2: 8 | M2: 9 | N2: 10 | O2: 11 | P2: 12 | Q2: 13 | R2: 14 | S2: 15 | T2: 16 | U2: 17 | V2: 18 | W2: 19 | X2: 20 | Y2: 21 | Z2: 22 | AA2: 23 | AB2: 24 | AC2: 25 | AD2: 26 | AE2: 27 | AF2: 28 | AG2: 29 | AH2: 30 | AI2: 31 | AJ2: 32 | AK2: 33 | AL2: =AK2+1 -> 34 | AM2: =AL2+1 -> 35 | AN2: =AM2+1 -> 36
E3: ="Y"&INT((E2-1)/12+1) -> Y1 | F3: ="Y"&INT((F2-1)/12+1) -> Y1 | G3: Y1 | H3: Y1 | I3: Y1 | J3: Y1 | K3: Y1 | L3: Y1 | M3: Y1 | N3: Y1 | O3: Y1 | P3: Y1 | Q3: Y2 | R3: Y2 | S3: Y2 | T3: Y2 | U3: Y2 | V3: Y2 | W3: Y2 | X3: Y2 | Y3: Y2 | Z3: Y2 | AA3: Y2 | AB3: Y2 | AC3: Y3 | AD3: Y3 | AE3: Y3 | AF3: Y3 | AG3: Y3 | AH3: Y3 | AI3: Y3 | AJ3: Y3 | AK3: Y3 | AL3: ="Y"&INT((AL2-1)/12+1) -> Y3 | AM3: Y3 | AN3: Y3
E4: =YEAR(E8) -> 2019 | F4: =YEAR(F8) -> 2019 | G4: 2019 | H4: 2019 | I4: 2019 | J4: 2019 | K4: 2019 | L4: 2019 | M4: 2019 | N4: 2019 | O4: 2019 | P4: 2019 | Q4: 2020 | R4: 2020 | S4: 2020 | T4: 2020 | U4: 2020 | V4: 2020 | W4: 2020 | X4: 2020 | Y4: 2020 | Z4: 2020 | AA4: 2020 | AB4: 2020 | AC4: 2021 | AD4: 2021 | AE4: 2021 | AF4: 2021 | AG4: 2021 | AH4: 2021 | AI4: 2021 | AJ4: 2021 | AK4: 2021 | AL4: 2021 | AM4: 2021 | AN4: 2021 | AR4: =AU4 -> 36 | AS4: =OFFSET($E$2,0,MATCH(AT8,$E$3:$AN$3,0)-2,1,1) -> 12 | AT4: =AS4+12 -> 24 | AU4: =AT4+12 -> 36
B6: Подробный финансовый расчёт
B8: Старт проекта | E8: ='Ввод параметров'!C7 -> 2019-01-01 | F8: =EDATE(E8,1) -> 2019-02-01 | G8: =EDATE(F8,1) -> 2019-03-01 | H8: 2019-04-01 | I8: 2019-05-01 | J8: 2019-06-01 | K8: 2019-07-01 | L8: 2019-08-01 | M8: 2019-09-01 | N8: 2019-10-01 | O8: 2019-11-01 | P8: 2019-12-01 | Q8: 2020-01-01 | R8: 2020-02-01 | S8: 2020-03-01 | T8: 2020-04-01 | U8: 2020-05-01 | V8: 2020-06-01 | W8: 2020-07-01 | X8: 2020-08-01 | Y8: 2020-09-01 | Z8: 2020-10-01 | AA8: 2020-11-01 | AB8: 2020-12-01 | AC8: 2021-01-01 | AD8: 2021-02-01 | AE8: 2021-03-01 | AF8: 2021-04-01 | AG8: 2021-05-01 | AH8: 2021-06-01 | AI8: 2021-07-01 | AJ8: 2021-08-01 | AK8: 2021-09-01 | AL8: =EDATE(AK8,1) -> 2021-10-01 | AM8: =EDATE(AL8,1) -> 2021-11-01 | AN8: =EDATE(AM8,1) -> 2021-12-01 | AR8: TOTAL | AS8: =$E$3 -> Y1 | AT8: ="Y2" -> Y2 | AU8: ="Y3" -> Y3
B10: Раскачка продаж | E10: =TRANSPOSE('Ввод параметров'!$G$9:$G$20) -> 0.2 | F10: 0.3 | G10: 0.4 | H10: 0.5 | I10: 0.6 | J10: 0.7 | K10: 0.8 | L10: 0.9 | M10: 1 | N10: 1 | O10: 1 | P10: 1 | Q10: =$P$10 -> 1 | R10: 1 | S10: 1 | T10: 1 | U10: 1 | V10: 1 | W10: 1 | X10: 1 | Y10: 1 | Z10: 1 | AA10: 1 | AB10: 1 | AC10: 1 | AD10: 1 | AE10: 1 | AF10: 1 | AG10: 1 | AH10: 1 | AI10: 1 | AJ10: 1 | AK10: 1 | AL10: 1 | AM10: 1 | AN10: 1
B11: Выручка | C11: =$C$40 -> 477317.6471 | D11: тыс. Руб | E11: =$C$11*E10 -> 95463.52941 | F11: 143195.2941 | G11: 190927.0588 | H11: 238658.8235 | I11: 286390.5882 | J11: 334122.3529 | K11: 381854.1176 | L11: 429585.8824 | M11: 477317.6471 | N11: 477317.6471 | O11: 477317.6471 | P11: 477317.6471 | Q11: 477317.6471 | R11: 477317.6471 | S11: 477317.6471 | T11: 477317.6471 | U11: 477317.6471 | V11: 477317.6471 | W11: 477317.6471 | X11: 477317.6471 | Y11: 477317.6471 | Z11: 477317.6471 | AA11: 477317.6471 | AB11: 477317.6471 | AC11: 477317.6471 | AD11: 477317.6471 | AE11: 477317.6471 | AF11: 477317.6471 | AG11: 477317.6471 | AH11: 477317.6471 | AI11: 477317.6471 | AJ11: 477317.6471 | AK11: 477317.6471 | AL11: 477317.6471 | AM11: 477317.6471 | AN11: 477317.6471 | AR11: =SUM(AS11:AU11) -> 15465091.76 | AS11: =SUMIF($3:$3,AS$8,11:11) -> 4009468.235 | AT11: =SUMIF($3:$3,AT$8,11:11) -> 5727811.765 | AU11: =SUMIF($3:$3,AU$8,11:11) -> 5727811.765
B14: Выручка | D14: тыс. Руб | E14: =E11 -> 95463.52941 | F14: =F11 -> 143195.2941 | G14: 190927.0588 | H14: 238658.8235 | I14: 286390.5882 | J14: 334122.3529 | K14: 381854.1176 | L14: 429585.8824 | M14: 477317.6471 | N14: 477317.6471 | O14: 477317.6471 | P14: 477317.6471 | Q14: 477317.6471 | R14: 477317.6471 | S14: 477317.6471 | T14: 477317.6471 | U14: 477317.6471 | V14: 477317.6471 | W14: 477317.6471 | X14: 477317.6471 | Y14: 477317.6471 | Z14: 477317.6471 | AA14: 477317.6471 | AB14: 477317.6471 | AC14: 477317.6471 | AD14: 477317.6471 | AE14: 477317.6471 | AF14: 477317.6471 | AG14: 477317.6471 | AH14: 477317.6471 | AI14: 477317.6471 | AJ14: 477317.6471 | AK14: 477317.6471 | AL14: =AL11 -> 477317.6471 | AM14: 477317.6471 | AN14: 477317.6471 | AR14: =SUM(AS14:AU14) -> 15465091.76 | AS14: =SUMIF($3:$3,AS$8,14:14) -> 4009468.235 | AT14: =SUMIF($3:$3,AT$8,14:14) -> 5727811.765 | AU14: =SUMIF($3:$3,AU$8,14:14) -> 5727811.765
B16: ОПЕРАЦИОННЫЕ ЗАТРАТЫ
B17: Роялти | C17: ='Ввод параметров'!$C$16/100 -> 0.03 | D17: тыс. Руб | G17: =-G14*$C$17 -> -5727.811765 | H17: -7159.764706 | I17: -8591.717647 | J17: -10023.67059 | K17: -11455.62353 | L17: -12887.57647 | M17: -14319.52941 | N17: -14319.52941 | O17: -14319.52941 | P17: -14319.52941 | Q17: -14319.52941 | R17: -14319.52941 | S17: -14319.52941 | T17: -14319.52941 | U17: -14319.52941 | V17: -14319.52941 | W17: -14319.52941 | X17: -14319.52941 | Y17: -14319.52941 | Z17: -14319.52941 | AA17: -14319.52941 | AB17: -14319.52941 | AC17: -14319.52941 | AD17: -14319.52941 | AE17: -14319.52941 | AF17: -14319.52941 | AG17: -14319.52941 | AH17: -14319.52941 | AI17: -14319.52941 | AJ17: -14319.52941 | AK17: -14319.52941 | AL17: -14319.52941 | AM17: -14319.52941 | AN17: -14319.52941 | AR17: =SUM(AS17:AU17) -> -456792.9882 | AS17: =SUMIF($3:$3,AS$8,17:17) -> -113124.2824 | AT17: -171834.3529 | AU17: -171834.3529
B18: Закупка необходимых товаров | C18: 0.6 | D18: тыс. Руб | E18: =-$C$18*E14 -> -57278.11765 | F18: -85917.17647 | G18: -114556.2353 | H18: -143195.2941 | I18: -171834.3529 | J18: -200473.4118 | K18: -229112.4706 | L18: -257751.5294 | M18: -286390.5882 | N18: -286390.5882 | O18: -286390.5882 | P18: -286390.5882 | Q18: -286390.5882 | R18: -286390.5882 | S18: -286390.5882 | T18: -286390.5882 | U18: -286390.5882 | V18: -286390.5882 | W18: -286390.5882 | X18: -286390.5882 | Y18: -286390.5882 | Z18: -286390.5882 | AA18: -286390.5882 | AB18: -286390.5882 | AC18: -286390.5882 | AD18: -286390.5882 | AE18: -286390.5882 | AF18: -286390.5882 | AG18: -286390.5882 | AH18: -286390.5882 | AI18: -286390.5882 | AJ18: -286390.5882 | AK18: -286390.5882 | AL18: -286390.5882 | AM18: -286390.5882 | AN18: -286390.5882 | AR18: -9279055.059 | AS18: -2405680.941 | AT18: -3436687.059 | AU18: -3436687.059
B19: Зарплата сотрудникам | C19: =$C$44 -> 38319.52941 | D19: тыс. Руб | E19: =-$C$19 -> -38319.52941 | F19: -38319.52941 | G19: -38319.52941 | H19: -38319.52941 | I19: -38319.52941 | J19: -38319.52941 | K19: -38319.52941 | L19: -38319.52941 | M19: -38319.52941 | N19: -38319.52941 | O19: -38319.52941 | P19: -38319.52941 | Q19: -38319.52941 | R19: -38319.52941 | S19: -38319.52941 | T19: -38319.52941 | U19: -38319.52941 | V19: -38319.52941 | W19: -38319.52941 | X19: -38319.52941 | Y19: -38319.52941 | Z19: -38319.52941 | AA19: -38319.52941 | AB19: -38319.52941 | AC19: -38319.52941 | AD19: -38319.52941 | AE19: -38319.52941 | AF19: -38319.52941 | AG19: -38319.52941 | AH19: -38319.52941 | AI19: -38319.52941 | AJ19: -38319.52941 | AK19: -38319.52941 | AL19: -38319.52941 | AM19: -38319.52941 | AN19: -38319.52941 | AR19: -1379503.059 | AS19: -459834.3529 | AT19: -459834.3529 | AU19: -459834.3529
B20: Аренда | C20: =$C$45 -> 19600 | D20: тыс. Руб | E20: =-$C$20 -> -19600 | F20: -19600 | G20: -19600 | H20: -19600 | I20: -19600 | J20: -19600 | K20: -19600 | L20: -19600 | M20: -19600 | N20: -19600 | O20: -19600 | P20: -19600 | Q20: -19600 | R20: -19600 | S20: -19600 | T20: -19600 | U20: -19600 | V20: -19600 | W20: -19600 | X20: -19600 | Y20: -19600 | Z20: -19600 | AA20: -19600 | AB20: -19600 | AC20: -19600 | AD20: -19600 | AE20: -19600 | AF20: -19600 | AG20: -19600 | AH20: -19600 | AI20: -19600 | AJ20: -19600 | AK20: -19600 | AL20: -19600 | AM20: -19600 | AN20: -19600 | AR20: -705600 | AS20: -235200 | AT20: -235200 | AU20: -235200
B21: ОПЕРАЦИОННЫЕ ЗАТРАТЫ | D21: тыс. Руб | E21: =SUM(E17:E20) -> -115197.6471 | F21: =SUM(F17:F20) -> -143836.7059 | G21: -178203.5765 | H21: -208274.5882 | I21: -238345.6 | J21: -268416.6118 | K21: -298487.6235 | L21: -328558.6353 | M21: -358629.6471 | N21: -358629.6471 | O21: -358629.6471 | P21: -358629.6471 | Q21: -358629.6471 | R21: -358629.6471 | S21: -358629.6471 | T21: -358629.6471 | U21: -358629.6471 | V21: -358629.6471 | W21: -358629.6471 | X21: -358629.6471 | Y21: -358629.6471 | Z21: -358629.6471 | AA21: -358629.6471 | AB21: -358629.6471 | AC21: -358629.6471 | AD21: -358629.6471 | AE21: -358629.6471 | AF21: -358629.6471 | AG21: -358629.6471 | AH21: -358629.6471 | AI21: -358629.6471 | AJ21: -358629.6471 | AK21: -358629.6471 | AL21: -358629.6471 | AM21: -358629.6471 | AN21: -358629.6471 | AR21: -11820951.11 | AS21: -3213839.576 | AT21: -4303555.765 | AU21: -4303555.765
B22: Аммортизация оборудования | C22: 60 | D22: тыс. Руб | E22: =SUM(OFFSET(E27,0,0,1,-MIN($C22,E$2)))/$C22 -> -5000 | F22: -5000 | G22: -5000 | H22: -5000 | I22: -5000 | J22: -5000 | K22: -5000 | L22: -5000 | M22: -5000 | N22: -5000 | O22: -5000 | P22: -5000 | Q22: -5000 | R22: -5000 | S22: -5000 | T22: -5000 | U22: -5000 | V22: -5000 | W22: -5000 | X22: -5000 | Y22: -5000 | Z22: -5000 | AA22: -5000 | AB22: -5000 | AC22: -5000 | AD22: -5000 | AE22: -5000 | AF22: -5000 | AG22: -5000 | AH22: -5000 | AI22: -5000 | AJ22: -5000 | AK22: -5000 | AL22: -5000 | AM22: -5000 | AN22: -5000 | AR22: -180000 | AS22: -60000 | AT22: -60000 | AU22: -60000
B23: Аммортизация оборудования | D23: тыс. Руб | E23: =SUM(E22:E22) -> -5000 | F23: -5000 | G23: -5000 | H23: -5000 | I23: -5000 | J23: -5000 | K23: -5000 | L23: -5000 | M23: -5000 | N23: -5000 | O23: -5000 | P23: -5000 | Q23: -5000 | R23: -5000 | S23: -5000 | T23: -5000 | U23: -5000 | V23: -5000 | W23: -5000 | X23: -5000 | Y23: -5000 | Z23: -5000 | AA23: -5000 | AB23: -5000 | AC23: -5000 | AD23: -5000 | AE23: -5000 | AF23: -5000 | AG23: -5000 | AH23: -5000 | AI23: -5000 | AJ23: -5000 | AK23: -5000 | AL23: =SUM(AL22:AL22) -> -5000 | AM23: -5000 | AN23: -5000 | AR23: -180000 | AS23: -60000 | AT23: -60000 | AU23: -60000
B24: Прибыль - убытки | D24: тыс. Руб | E24: =E14+E21+E23 -> -24734.11765 | F24: -5641.411765 | G24: 7723.482353 | H24: 25384.23529 | I24: 43044.98824 | J24: 60705.74118 | K24: 78366.49412 | L24: 96027.24706 | M24: 113688 | N24: 113688 | O24: 113688 | P24: 113688 | Q24: 113688 | R24: 113688 | S24: 113688 | T24: 113688 | U24: 113688 | V24: 113688 | W24: 113688 | X24: 113688 | Y24: 113688 | Z24: 113688 | AA24: 113688 | AB24: 113688 | AC24: 113688 | AD24: 113688 | AE24: 113688 | AF24: 113688 | AG24: 113688 | AH24: 113688 | AI24: 113688 | AJ24: 113688 | AK24: 113688 | AL24: 113688 | AM24: 113688 | AN24: 113688 | AR24: 3464140.659 | AS24: 735628.6588 | AT24: 1364256 | AU24: 1364256
B25: Прибыль - убытки с учётом налогов | C25: ='Ввод параметров'!$C$17/100 -> 0.06 | D25: тыс. Руб | E25: =E24*(1-$C$25) -> -23250.07059 | F25: -5302.927059 | G25: 7260.073412 | H25: 23861.18118 | I25: 40462.28894 | J25: 57063.39671 | K25: 73664.50447 | L25: 90265.61224 | M25: 106866.72 | N25: 106866.72 | O25: 106866.72 | P25: 106866.72 | Q25: 106866.72 | R25: 106866.72 | S25: 106866.72 | T25: 106866.72 | U25: 106866.72 | V25: 106866.72 | W25: 106866.72 | X25: 106866.72 | Y25: 106866.72 | Z25: 106866.72 | AA25: 106866.72 | AB25: 106866.72 | AC25: 106866.72 | AD25: 106866.72 | AE25: 106866.72 | AF25: 106866.72 | AG25: 106866.72 | AH25: 106866.72 | AI25: 106866.72 | AJ25: 106866.72 | AK25: 106866.72 | AL25: 106866.72 | AM25: 106866.72 | AN25: 106866.72 | AR25: 3256292.219 | AS25: 691490.9393 | AT25: 1282400.64 | AU25: 1282400.64
B26: КАПИТАЛЬНЫЕ ЗАТРАТЫ
B27: Закупаемое оборудование | D27: тыс. Руб | E27: -300000 | AR27: =SUM(AS27:AU27) -> -300000 | AS27: =SUMIF($3:$3,AS$8,27:27) -> -300000 | AT27: 0 | AU27: 0
B28: Паушальный взнос | D28: тыс. Руб | E28: -200000 | AR28: =SUM(AS28:AU28) -> -200000 | AS28: -200000 | AT28: 0 | AU28: 0
B29: КАПИТАЛЬНЫЕ ЗАТРАТЫ | D29: тыс. Руб | E29: =SUM(E27:E28) -> -500000 | F29: 0 | G29: 0 | H29: 0 | I29: 0 | J29: 0 | K29: 0 | L29: 0 | M29: 0 | N29: 0 | O29: 0 | P29: 0 | Q29: 0 | R29: 0 | S29: 0 | T29: 0 | U29: 0 | V29: 0 | W29: 0 | X29: 0 | Y29: 0 | Z29: 0 | AA29: 0 | AB29: 0 | AC29: 0 | AD29: 0 | AE29: 0 | AF29: 0 | AG29: 0 | AH29: 0 | AI29: 0 | AJ29: 0 | AK29: 0 | AL29: 0 | AM29: 0 | AN29: 0 | AR29: =SUM(AS29:AU29) -> -500000 | AS29: -500000 | AT29: 0 | AU29: 0
B30: Денежный поток | D30: тыс. Руб | E30: =E25-E23+E29 -> -518250.0706 | F30: -302.9270588 | G30: 12260.07341 | H30: 28861.18118 | I30: 45462.28894 | J30: 62063.39671 | K30: 78664.50447 | L30: 95265.61224 | M30: 111866.72 | N30: 111866.72 | O30: 111866.72 | P30: 111866.72 | Q30: 111866.72 | R30: 111866.72 | S30: 111866.72 | T30: 111866.72 | U30: 111866.72 | V30: 111866.72 | W30: 111866.72 | X30: 111866.72 | Y30: 111866.72 | Z30: 111866.72 | AA30: 111866.72 | AB30: 111866.72 | AC30: 111866.72 | AD30: 111866.72 | AE30: 111866.72 | AF30: 111866.72 | AG30: 111866.72 | AH30: 111866.72 | AI30: 111866.72 | AJ30: 111866.72 | AK30: 111866.72 | AL30: 111866.72 | AM30: 111866.72 | AN30: 111866.72
B31: Денежный поток накопительно | D31: тыс. Руб | E31: =E30 -> -518250.0706 | F31: =F30+E31 -> -518552.9976 | G31: -506292.9242 | H31: -477431.7431 | I31: -431969.4541 | J31: -369906.0574 | K31: -291241.5529 | L31: -195975.9407 | M31: -84109.22071 | N31: 27757.49929 | O31: 139624.2193 | P31: 251490.9393 | Q31: 363357.6593 | R31: 475224.3793 | S31: 587091.0993 | T31: 698957.8193 | U31: 810824.5393 | V31: 922691.2593 | W31: 1034557.979 | X31: 1146424.699 | Y31: 1258291.419 | Z31: 1370158.139 | AA31: 1482024.859 | AB31: 1593891.579 | AC31: 1705758.299 | AD31: 1817625.019 | AE31: 1929491.739 | AF31: 2041358.459 | AG31: 2153225.179 | AH31: 2265091.899 | AI31: 2376958.619 | AJ31: 2488825.339 | AK31: 2600692.059 | AL31: =AL30+AK31 -> 2712558.779 | AM31: 2824425.499 | AN31: 2936292.219 | AR31: =OFFSET($B31,0,(MATCH(AR$4,$2:$2,0))-1,1,1) -> 0 | AS31: =OFFSET($B31,0,(MATCH(AS$4,$2:$2,0))-1,1,1) -> 363357.6593 | AT31: =OFFSET($B31,0,(MATCH(AT$4,$2:$2,0))-1,1,1) -> 1705758.299 | AU31: =OFFSET($B31,0,(MATCH(AU$4,$2:$2,0))-1,1,1) -> 0
B32: EBITDA | D32: тыс. Руб | E32: =E24-E23 -> -19734.11765 | F32: -641.4117647 | G32: 12723.48235 | H32: 30384.23529 | I32: 48044.98824 | J32: 65705.74118 | K32: 83366.49412 | L32: 101027.2471 | M32: 118688 | N32: 118688 | O32: 118688 | P32: 118688 | Q32: 118688 | R32: 118688 | S32: 118688 | T32: 118688 | U32: 118688 | V32: 118688 | W32: 118688 | X32: 118688 | Y32: 118688 | Z32: 118688 | AA32: 118688 | AB32: 118688 | AC32: 118688 | AD32: 118688 | AE32: 118688 | AF32: 118688 | AG32: 118688 | AH32: 118688 | AI32: 118688 | AJ32: 118688 | AK32: 118688 | AL32: 118688 | AM32: 118688 | AN32: 118688 | AR32: =SUM(AS32:AU32) -> 3644140.659 | AS32: =SUMIF($3:$3,AS$8,32:32) -> 795628.6588 | AT32: =SUMIF($3:$3,AT$8,32:32) -> 1424256 | AU32: =SUMIF($3:$3,AU$8,32:32) -> 1424256
B33: NPV | C33: =AR33 -> 0 | D33: тыс. Руб | E33: =E31 -> -518250.0706 | F33: -518552.9976 | G33: -506292.9242 | H33: -477431.7431 | I33: -431969.4541 | J33: -369906.0574 | K33: -291241.5529 | L33: -195975.9407 | M33: -84109.22071 | N33: 27757.49929 | O33: 139624.2193 | P33: 251490.9393 | Q33: 363357.6593 | R33: 475224.3793 | S33: 587091.0993 | T33: 698957.8193 | U33: 810824.5393 | V33: 922691.2593 | W33: 1034557.979 | X33: 1146424.699 | Y33: 1258291.419 | Z33: 1370158.139 | AA33: 1482024.859 | AB33: 1593891.579 | AC33: 1705758.299 | AD33: 1817625.019 | AE33: 1929491.739 | AF33: 2041358.459 | AG33: 2153225.179 | AH33: 2265091.899 | AI33: 2376958.619 | AJ33: 2488825.339 | AK33: 2600692.059 | AL33: =AL31 -> 2712558.779 | AM33: 2824425.499 | AN33: 2936292.219 | AR33: =OFFSET($B33,0,(MATCH(AR$4,$2:$2,0))-1,1,1) -> 0 | AS33: =OFFSET($B33,0,(MATCH(AS$4,$2:$2,0))-1,1,1) -> 363357.6593 | AT33: =OFFSET($B33,0,(MATCH(AT$4,$2:$2,0))-1,1,1) -> 1705758.299 | AU33: =OFFSET($B33,0,(MATCH(AU$4,$2:$2,0))-1,1,1) -> 0
B34: Окупаемость | C34: =MATCH(0,$E$31:$AK$31,1) -> 9
B37: Кол-во литров* | C37: 4.9 | D37: на ч/месяц
B38: Потребление района | C38: ='Ввод параметров'!C9*3*C37*'Ввод параметров'!C8/34 -> 27670.58824 | D38: л/месяц
B39: Средний чек | C39: =(('Ввод параметров'!C18+'Ввод параметров'!C19)/2)*'Ввод параметров'!C14/30+200*'Ввод параметров'!C15/50 -> 327.5 | D39: рублей
B40: Выручка | C40: =((('Ввод параметров'!C18+'Ввод параметров'!C19)/2)*('Ввод параметров'!C14/30)*C38+200*C38)*'Ввод параметров'!C20/100 -> 477317.6471 | D40: рублей
B41: Рентабельность | C41: =100-C43/C40*100 -> 40 | D41: %
B42: Роялти | C42: =C40*'Ввод параметров'!C16/100 -> 14319.52941 | D42: рублей
B43: Товарный остаток | C43: =C40*0.6 -> 286390.5882 | D43: рублей
B44: ФОТ | C44: =30*'Ввод параметров'!C12+C40*'Ввод параметров'!C13/100 -> 38319.52941 | D44: рублей
B45: Аренда | C45: ='Ввод параметров'!C10*'Ввод параметров'!C11 -> 19600 | D45: рублей
B46: Налоги | C46: =C40*'Ввод параметров'!C17/100 -> 28639.05882 | D46: рублей
B47: Чистая прибыль (мес) | C47: =C40-C42-C46-C43-C44-C45-C40*'Ввод параметров'!G37/100 -> 90048.94118 | D47: рублей
